[Event "Titled Tuesday Blitz December 06 Late 2022"]
[White "Rorrer, Grayson"]
[Black "Van Dael, Siem"]
[WhiteFideId "30944996"]
[BlackFideId "1049771"]
[WhiteElo "2200"]
[BlackElo "2336"]
[Result "0-1"]
[Round "05"]
[TimeControl "180+1"]
[Date "2022.12.07"]
[WhiteClock "0:00:03"]
[BlackClock "0:00:13"]

1. e4 {[%clk 0:03:00]}  c5 {[%clk 0:02:58]} 2. Nf3 {[%clk 0:02:59]}  d6 {[%clk 0:02:58]} 3. d4 {[%clk 0:02:59]}  cxd4 {[%clk 0:02:59]} 4. Nxd4 {[%clk 0:03:00]}  Nf6 {[%clk 0:02:59]} 5. Nc3 {[%clk 0:03:00]}  g6 {[%clk 0:02:57]} 6. Be3 {[%clk 0:03:00]}  Bg7 {[%clk 0:02:57]} 7. f3 {[%clk 0:03:01]}  O-O {[%clk 0:02:57]} 8. Qd2 {[%clk 0:03:01]}  Nc6 {[%clk 0:02:57]} 9. O-O-O {[%clk 0:03:02]}  d5 {[%clk 0:02:58]} 10. exd5 {[%clk 0:03:02]}  Nxd5 {[%clk 0:02:57]} 11. Nxc6 {[%clk 0:03:03]}  bxc6 {[%clk 0:02:55]} 12. Bd4 {[%clk 0:03:03]}  Bxd4 {[%clk 0:02:55]} 13. Qxd4 {[%clk 0:03:04]}  Qb6 {[%clk 0:02:55]} 14. Na4 {[%clk 0:03:04]}  Qc7 {[%clk 0:02:56]} 15. Bc4 {[%clk 0:03:02]}  Rd8 {[%clk 0:02:47]} 16. Bb3 {[%clk 0:02:45]}  Bf5 {[%clk 0:02:26]} 17. Nc5 {[%clk 0:02:32]}  a5 {[%clk 0:01:54]} 18. g4 {[%clk 0:02:32]}  a4 {[%clk 0:01:40]} 19. Bxa4 {[%clk 0:02:11]}  Nf4 {[%clk 0:01:19]} 20. Qe3 {[%clk 0:02:03]}  Nd5 {[%clk 0:00:51]} 21. Rxd5 {[%clk 0:00:58]}  Rxd5 {[%clk 0:00:43]} 22. gxf5 {[%clk 0:00:57]}  Qb6 {[%clk 0:00:44]} 23. fxg6 {[%clk 0:00:34]}  hxg6 {[%clk 0:00:43]} 24. Bb3 {[%clk 0:00:29]}  Qxc5 {[%clk 0:00:42]} 25. Qh6 {[%clk 0:00:23]}  Rg5 {[%clk 0:00:37]} 26. Re1 {[%clk 0:00:18]}  Rg1 {[%clk 0:00:31]} 27. Bxf7+ {[%clk 0:00:02]}  Kxf7 {[%clk 0:00:31]} 28. Qh7+ {[%clk 0:00:01]}  Ke8 {[%clk 0:00:20]} 29. Qg8+ {[%clk 0:00:01]}  Kd7 {[%clk 0:00:21]} 30. Qe6+ {[%clk 0:00:02]}  Kc7 {[%clk 0:00:20]} 31. b4 {[%clk 0:00:02]}  Rxe1+ {[%clk 0:00:20]} 32. Qxe1 {[%clk 0:00:03]}  Qg5+ {[%clk 0:00:20]} 33. Kb2 {[%clk 0:00:03]}  Rd8 {[%clk 0:00:16]} 34. h4 {[%clk 0:00:02]}  Qf6+ {[%clk 0:00:16]} 35. c3 {[%clk 0:00:01]}  Rd3 {[%clk 0:00:15]} 36. Kb3 {[%clk 0:00:01]}  Rxf3 {[%clk 0:00:14]} 37. Qd2 {[%clk 0:00:01]}  Qe6+ {[%clk 0:00:14]} 38. Kb2 {[%clk 0:00:01]}  Qd5 {[%clk 0:00:14]} 39. Qh2+ {[%clk 0:00:01]}  Qd6 {[%clk 0:00:13]} 40. Qe2 {[%clk 0:00:02]}  Qf4 {[%clk 0:00:13]} 41. Qa6 {[%clk 0:00:02]}  Rf2+ {[%clk 0:00:13]} 42. Kb3 {[%clk 0:00:02]}  Kd6 {[%clk 0:00:13]} 43. b5 {[%clk 0:00:01]}  Qe4 {[%clk 0:00:13]} 44. Qb6 {[%clk 0:00:01]}  Qd5+ {[%clk 0:00:13]} 45. Kb4 {[%clk 0:00:01]}  Qxb5+ {[%clk 0:00:12]} 46. Qxb5 {[%clk 0:00:01]}  cxb5 {[%clk 0:00:13]} 47. Kxb5 {[%clk 0:00:02]}  Rf4 {[%clk 0:00:13]} 48. c4 {[%clk 0:00:03]} 0-1


[Site "https://www.chess.com"]

[Event "Titled Tuesday Blitz December 06 Late 2022"]
[White "Rosenthal, Nicholas"]
[Black "Mazurkiewicz, Michal"]
[WhiteFideId "2045150"]
[BlackFideId "1124943"]
[WhiteElo "2182"]
[BlackElo "2081"]
[Result "1-0"]
[Round "05"]
[TimeControl "180+1"]
[Date "2022.12.07"]
[WhiteClock "0:00:22"]
[BlackClock "0:00:03"]

1. e4 {[%clk 0:03:00]}  d6 {[%clk 0:03:00]} 2. d4 {[%clk 0:03:00]}  Nf6 {[%clk 0:03:00]} 3. Nc3 {[%clk 0:03:00]}  c6 {[%clk 0:03:01]} 4. Nf3 {[%clk 0:03:01]}  Bg4 {[%clk 0:03:00]} 5. Bc4 {[%clk 0:03:00]}  e6 {[%clk 0:03:00]} 6. O-O {[%clk 0:03:00]}  d5 {[%clk 0:03:00]} 7. exd5 {[%clk 0:03:00]}  cxd5 {[%clk 0:03:01]} 8. Bb3 {[%clk 0:03:00]}  Be7 {[%clk 0:03:01]} 9. Be3 {[%clk 0:03:00]}  O-O {[%clk 0:03:00]} 10. Nb1 {[%clk 0:03:00]}  Nc6 {[%clk 0:02:59]} 11. c3 {[%clk 0:03:01]}  e5 {[%clk 0:02:49]} 12. dxe5 {[%clk 0:03:00]}  Nxe5 {[%clk 0:02:48]} 13. Nbd2 {[%clk 0:03:01]}  Ne4 {[%clk 0:02:47]} 14. Bc2 {[%clk 0:02:42]}  Nxd2 {[%clk 0:02:42]} 15. Bxd2 {[%clk 0:02:42]}  Nxf3+ {[%clk 0:02:39]} 16. gxf3 {[%clk 0:02:43]}  Bh3 {[%clk 0:02:39]} 17. Re1 {[%clk 0:02:42]}  Bd6 {[%clk 0:02:40]} 18. f4 {[%clk 0:02:39]}  Qh4 {[%clk 0:02:28]} 19. Qf3 {[%clk 0:02:36]}  Rfe8 {[%clk 0:01:25]} 20. Qxd5 {[%clk 0:02:19]}  Bxf4 {[%clk 0:01:20]} 21. Bxf4 {[%clk 0:01:27]}  Qxf4 {[%clk 0:01:20]} 22. Qh5 {[%clk 0:01:26]}  Qg4+ {[%clk 0:01:13]} 23. Qxg4 {[%clk 0:01:26]}  Bxg4 {[%clk 0:01:14]} 24. Kg2 {[%clk 0:01:25]}  Rad8 {[%clk 0:01:06]} 25. Kg3 {[%clk 0:01:19]}  Be6 {[%clk 0:01:03]} 26. Be4 {[%clk 0:01:16]}  Rd2 {[%clk 0:00:56]} 27. b3 {[%clk 0:01:14]}  b6 {[%clk 0:00:55]} 28. c4 {[%clk 0:01:10]}  g6 {[%clk 0:00:52]} 29. a4 {[%clk 0:01:07]}  a5 {[%clk 0:00:45]} 30. Re3 {[%clk 0:01:04]}  g5 {[%clk 0:00:40]} 31. Rae1 {[%clk 0:00:56]}  Red8 {[%clk 0:00:32]} 32. Bc6 {[%clk 0:00:50]}  R8d3 {[%clk 0:00:28]} 33. f4 {[%clk 0:00:44]}  gxf4+ {[%clk 0:00:26]} 34. Kxf4 {[%clk 0:00:45]}  Rxe3 {[%clk 0:00:27]} 35. Rxe3 {[%clk 0:00:45]}  Rxh2 {[%clk 0:00:27]} 36. Ke5 {[%clk 0:00:45]}  Kf8 {[%clk 0:00:25]} 37. Kd6 {[%clk 0:00:46]}  Rh6 {[%clk 0:00:18]} 38. Kc7 {[%clk 0:00:45]}  Rg6 {[%clk 0:00:17]} 39. Rd3 {[%clk 0:00:38]}  h5 {[%clk 0:00:17]} 40. Kxb6 {[%clk 0:00:38]}  Bf5 {[%clk 0:00:15]} 41. Rd8+ {[%clk 0:00:35]}  Kg7 {[%clk 0:00:16]} 42. Kc5 {[%clk 0:00:33]}  h4 {[%clk 0:00:15]} 43. Rd2 {[%clk 0:00:31]}  h3 {[%clk 0:00:15]} 44. Rh2 {[%clk 0:00:24]}  Rg3 {[%clk 0:00:15]} 45. Kb5 {[%clk 0:00:23]}  Rxb3+ {[%clk 0:00:14]} 46. Kxa5 {[%clk 0:00:23]}  Kg6 {[%clk 0:00:14]} 47. Bd5 {[%clk 0:00:18]}  Kg5 {[%clk 0:00:10]} 48. c5 {[%clk 0:00:18]}  Kg4 {[%clk 0:00:10]} 49. Bxb3 {[%clk 0:00:18]}  Kg3 {[%clk 0:00:10]} 50. Rxh3+ {[%clk 0:00:19]}  Kxh3 {[%clk 0:00:10]} 51. Bxf7 {[%clk 0:00:20]}  Bd7 {[%clk 0:00:08]} 52. Bd5 {[%clk 0:00:19]}  Kg4 {[%clk 0:00:07]} 53. c6 {[%clk 0:00:19]}  Bc8 {[%clk 0:00:08]} 54. Kb6 {[%clk 0:00:20]}  Kf5 {[%clk 0:00:08]} 55. a5 {[%clk 0:00:21]}  Ke5 {[%clk 0:00:08]} 56. Bc4 {[%clk 0:00:21]}  Kd6 {[%clk 0:00:08]} 57. a6 {[%clk 0:00:21]}  Bxa6 {[%clk 0:00:04]} 58. Bxa6 {[%clk 0:00:21]}  Ke7 {[%clk 0:00:03]} 59. c7 {[%clk 0:00:22]} 1-0


[Site "https://www.chess.com"]

[Event "Titled Tuesday Blitz December 06 Late 2022"]
[White "Sarana, Alexey"]
[Black "Stoleriu, George"]
[WhiteFideId "24133795"]
[BlackFideId "1227505"]
[WhiteElo "2708"]
[BlackElo "2287"]
[Result "1-0"]
[Round "05"]
[TimeControl "180+1"]
[Date "2022.12.06"]
[WhiteClock "0:00:27"]
[BlackClock "0:00:03"]

1. d4 {[%clk 0:03:00]}  Nf6 {[%clk 0:03:00]} 2. c4 {[%clk 0:03:00]}  g6 {[%clk 0:02:59]} 3. Nc3 {[%clk 0:03:01]}  Bg7 {[%clk 0:03:00]} 4. e4 {[%clk 0:03:01]}  d6 {[%clk 0:03:01]} 5. Be2 {[%clk 0:03:02]}  O-O {[%clk 0:03:01]} 6. Be3 {[%clk 0:03:02]}  e5 {[%clk 0:03:01]} 7. d5 {[%clk 0:03:03]}  Na6 {[%clk 0:03:01]} 8. g4 {[%clk 0:03:03]}  Nc5 {[%clk 0:03:00]} 9. f3 {[%clk 0:03:04]}  h5 {[%clk 0:02:38]} 10. g5 {[%clk 0:03:03]}  Nh7 {[%clk 0:02:38]} 11. h4 {[%clk 0:03:03]}  a5 {[%clk 0:02:33]} 12. Qd2 {[%clk 0:03:01]}  f6 {[%clk 0:02:34]} 13. O-O-O {[%clk 0:02:58]}  fxg5 {[%clk 0:02:31]} 14. hxg5 {[%clk 0:02:58]}  Rf4 {[%clk 0:02:31]} 15. Nh3 {[%clk 0:02:55]}  Bxh3 {[%clk 0:02:26]} 16. Rxh3 {[%clk 0:02:56]}  Qxg5 {[%clk 0:02:13]} 17. Rg1 {[%clk 0:02:53]}  Qf6 {[%clk 0:02:13]} 18. Nb5 {[%clk 0:02:52]}  Qf7 {[%clk 0:01:47]} 19. Rhg3 {[%clk 0:02:24]}  Nf8 {[%clk 0:01:46]} 20. Bd1 {[%clk 0:02:11]}  b6 {[%clk 0:01:31]} 21. Kb1 {[%clk 0:02:10]}  Kh7 {[%clk 0:01:26]} 22. a3 {[%clk 0:02:10]}  a4 {[%clk 0:01:26]} 23. Ka2 {[%clk 0:02:09]}  Ra6 {[%clk 0:01:24]} 24. Bc2 {[%clk 0:01:49]}  Ra8 {[%clk 0:01:24]} 25. Bxf4 {[%clk 0:01:32]}  Qxf4 {[%clk 0:01:17]} 26. Qxf4 {[%clk 0:00:57]}  exf4 {[%clk 0:01:18]} 27. Rg5 {[%clk 0:00:57]}  Bf6 {[%clk 0:01:04]} 28. Rxh5+ {[%clk 0:00:56]}  Kg7 {[%clk 0:00:54]} 29. e5 {[%clk 0:00:53]}  dxe5 {[%clk 0:00:45]} 30. Nxc7 {[%clk 0:00:51]}  Rc8 {[%clk 0:00:46]} 31. Nb5 {[%clk 0:00:50]}  Rd8 {[%clk 0:00:20]} 32. Nc3 {[%clk 0:00:46]}  Kf7 {[%clk 0:00:16]} 33. Rh6 {[%clk 0:00:45]}  Bg7 {[%clk 0:00:16]} 34. Bxg6+ {[%clk 0:00:42]}  Kf6 {[%clk 0:00:16]} 35. Rh4 {[%clk 0:00:35]}  e4 {[%clk 0:00:07]} 36. Bxe4 {[%clk 0:00:34]}  Kf7 {[%clk 0:00:05]} 37. Rxf4+ {[%clk 0:00:27]}  Kg8 {[%clk 0:00:05]} 38. Rfg4 {[%clk 0:00:27]}  Rd7 {[%clk 0:00:06]} 39. Bf5 {[%clk 0:00:28]}  Rf7 {[%clk 0:00:06]} 40. Ne4 {[%clk 0:00:28]}  Nd3 {[%clk 0:00:03]} 41. Nf6+ {[%clk 0:00:27]}  Rxf6 {[%clk 0:00:03]} 42. Rxg7+ {[%clk 0:00:27]} 1-0


[Site "https://www.chess.com"]

[Event "Titled Tuesday Blitz December 06 Late 2022"]
[White "Sargsyan, Anna M."]
[Black "Potapova, Margarita"]
[WhiteFideId "13308130"]
[BlackFideId "14126869"]
[WhiteElo "2284"]
[BlackElo "2273"]
[Result "1-0"]
[Round "05"]
[TimeControl "180+1"]
[Date "2022.12.07"]
[WhiteClock "0:02:34"]
[BlackClock "0:02:40"]

1. d4 {[%clk 0:02:55]}  Nf6 {[%clk 0:03:00]} 2. c4 {[%clk 0:02:55]}  e6 {[%clk 0:03:01]} 3. Nf3 {[%clk 0:02:51]}  d5 {[%clk 0:03:01]} 4. Nc3 {[%clk 0:02:50]}  dxc4 {[%clk 0:03:01]} 5. e3 {[%clk 0:02:45]}  a6 {[%clk 0:02:56]} 6. Bxc4 {[%clk 0:02:45]}  b5 {[%clk 0:02:56]} 7. Bd3 {[%clk 0:02:44]}  Bb7 {[%clk 0:02:56]} 8. O-O {[%clk 0:02:45]}  Be7 {[%clk 0:02:57]} 9. b3 {[%clk 0:02:45]}  O-O {[%clk 0:02:57]} 10. Bb2 {[%clk 0:02:46]}  Nbd7 {[%clk 0:02:58]} 11. Rc1 {[%clk 0:02:40]}  c5 {[%clk 0:02:58]} 12. Qe2 {[%clk 0:02:39]}  cxd4 {[%clk 0:02:58]} 13. Nxd4 {[%clk 0:02:40]}  Nc5 {[%clk 0:02:58]} 14. Bb1 {[%clk 0:02:41]}  Nce4 {[%clk 0:02:57]} 15. Rfd1 {[%clk 0:02:39]}  Qb8 {[%clk 0:02:56]} 16. Nxe4 {[%clk 0:02:36]}  Bxe4 {[%clk 0:02:57]} 17. Nc6 {[%clk 0:02:36]}  Qe8 {[%clk 0:02:44]} 18. Nxe7+ {[%clk 0:02:35]}  Qxe7 {[%clk 0:02:44]} 19. Bxf6 {[%clk 0:02:35]}  gxf6 {[%clk 0:02:40]} 20. Bxe4 {[%clk 0:02:35]}  Kh8 {[%clk 0:02:40]} 21. Bxa8 {[%clk 0:02:34]} 1-0


[Site "https://www.chess.com"]

[Event "Titled Tuesday Blitz December 06 Late 2022"]
[White "Silva, Pedro Gil Ferreira Da"]
[Black "Korkmaz, Necmettin"]
[WhiteFideId "1946102"]
[BlackFideId "6303285"]
[WhiteElo "2241"]
[BlackElo "2094"]
[Result "0-1"]
[Round "05"]
[TimeControl "180+1"]
[Date "2022.12.07"]
[WhiteClock "0:00:21"]
[BlackClock "0:00:13"]

1. c4 {[%clk 0:03:00]}  c6 {[%clk 0:02:55]} 2. Nf3 {[%clk 0:02:59]}  d5 {[%clk 0:02:55]} 3. g3 {[%clk 0:02:59]}  Nf6 {[%clk 0:02:55]} 4. Bg2 {[%clk 0:02:59]}  Bf5 {[%clk 0:02:55]} 5. O-O {[%clk 0:02:58]}  e6 {[%clk 0:02:53]} 6. b3 {[%clk 0:02:57]}  h6 {[%clk 0:02:49]} 7. Bb2 {[%clk 0:02:56]}  Nbd7 {[%clk 0:02:36]} 8. d3 {[%clk 0:02:55]}  Bc5 {[%clk 0:02:23]} 9. Nbd2 {[%clk 0:02:51]}  O-O {[%clk 0:02:21]} 10. a3 {[%clk 0:02:49]}  a5 {[%clk 0:02:19]} 11. Qc2 {[%clk 0:02:45]}  Qb6 {[%clk 0:02:13]} 12. Qc3 {[%clk 0:02:19]}  Rfe8 {[%clk 0:01:45]} 13. e4 {[%clk 0:02:08]}  dxe4 {[%clk 0:01:38]} 14. Nxe4 {[%clk 0:01:57]}  Bxe4 {[%clk 0:01:18]} 15. dxe4 {[%clk 0:01:56]}  e5 {[%clk 0:01:17]} 16. h3 {[%clk 0:01:45]}  Rad8 {[%clk 0:01:13]} 17. Rad1 {[%clk 0:01:41]}  Nh5 {[%clk 0:01:00]} 18. Nh4 {[%clk 0:01:14]}  Bd4 {[%clk 0:00:54]} 19. Qc2 {[%clk 0:01:11]}  Nc5 {[%clk 0:00:44]} 20. Bxd4 {[%clk 0:01:04]}  exd4 {[%clk 0:00:42]} 21. Nf5 {[%clk 0:00:55]}  d3 {[%clk 0:00:39]} 22. Qc3 {[%clk 0:00:51]}  Qxb3 {[%clk 0:00:36]} 23. Qxa5 {[%clk 0:00:44]}  b6 {[%clk 0:00:32]} 24. Qb4 {[%clk 0:00:40]}  Qxb4 {[%clk 0:00:26]} 25. axb4 {[%clk 0:00:41]}  Nxe4 {[%clk 0:00:26]} 26. Rfe1 {[%clk 0:00:26]}  Nhf6 {[%clk 0:00:22]} 27. Re3 {[%clk 0:00:19]}  d2 {[%clk 0:00:20]} 28. b5 {[%clk 0:00:18]}  cxb5 {[%clk 0:00:16]} 29. cxb5 {[%clk 0:00:19]}  Nd5 {[%clk 0:00:12]} 30. Rxe4 {[%clk 0:00:19]}  Rxe4 {[%clk 0:00:13]} 31. Bxe4 {[%clk 0:00:20]}  Nc3 {[%clk 0:00:13]} 32. Bc2 {[%clk 0:00:20]}  Nxd1 {[%clk 0:00:13]} 33. Bxd1 {[%clk 0:00:21]}  Re8 {[%clk 0:00:13]} 34. Ne3 {[%clk 0:00:21]}  Re5 {[%clk 0:00:13]} 35. Be2 {[%clk 0:00:21]}  f5 {[%clk 0:00:12]} 36. Kf1 {[%clk 0:00:21]}  g5 {[%clk 0:00:12]} 37. Bc4+ {[%clk 0:00:19]}  Kg7 {[%clk 0:00:12]} 38. Bb3 {[%clk 0:00:19]}  f4 {[%clk 0:00:10]} 39. Bd1 {[%clk 0:00:20]}  fxe3 {[%clk 0:00:10]} 40. fxe3 {[%clk 0:00:20]}  Rxe3 {[%clk 0:00:11]} 41. Kf2 {[%clk 0:00:21]}  Re1 {[%clk 0:00:11]} 42. Bg4 {[%clk 0:00:20]}  d1=Q {[%clk 0:00:12]} 43. Bxd1 {[%clk 0:00:21]}  Rxd1 {[%clk 0:00:13]} 0-1


[Site "https://www.chess.com"]

[Event "Titled Tuesday Blitz December 06 Late 2022"]
[White "Taboas Rodriguez, Daniel"]
[Black "Perez Leiva, Jerzy Jesus"]
[WhiteFideId "2208466"]
[BlackFideId "3524337"]
[WhiteElo "2329"]
[BlackElo "2289"]
[Result "0-1"]
[Round "05"]
[TimeControl "180+1"]
[Date "2022.12.07"]
[WhiteClock "0:00:44"]
[BlackClock "0:01:41"]

1. d4 {[%clk 0:03:00]}  Nf6 {[%clk 0:02:58]} 2. Nf3 {[%clk 0:03:00]}  d5 {[%clk 0:02:58]} 3. c4 {[%clk 0:03:00]}  c6 {[%clk 0:02:58]} 4. cxd5 {[%clk 0:02:59]}  Nxd5 {[%clk 0:02:54]} 5. e4 {[%clk 0:02:59]}  Nb6 {[%clk 0:02:54]} 6. Nc3 {[%clk 0:02:59]}  Bg4 {[%clk 0:02:52]} 7. Bg5 {[%clk 0:02:56]}  Qd6 {[%clk 0:02:27]} 8. e5 {[%clk 0:02:37]}  Qb4 {[%clk 0:02:26]} 9. Qd2 {[%clk 0:02:29]}  Nc4 {[%clk 0:02:20]} 10. Bxc4 {[%clk 0:02:28]}  Qxc4 {[%clk 0:02:21]} 11. O-O-O {[%clk 0:02:24]}  e6 {[%clk 0:02:18]} 12. Kb1 {[%clk 0:02:16]}  Na6 {[%clk 0:02:06]} 13. Rc1 {[%clk 0:02:05]}  Nb4 {[%clk 0:01:56]} 14. a3 {[%clk 0:01:52]}  a5 {[%clk 0:01:56]} 15. axb4 {[%clk 0:01:28]}  Bf5+ {[%clk 0:01:55]} 16. Rc2 {[%clk 0:01:16]}  axb4 {[%clk 0:01:51]} 17. Re1 {[%clk 0:00:52]}  b3 {[%clk 0:01:44]} 18. Ne4 {[%clk 0:00:45]}  Ra1+ {[%clk 0:01:39]} 19. Kxa1 {[%clk 0:00:43]}  Qa4+ {[%clk 0:01:40]} 20. Kb1 {[%clk 0:00:44]}  Qa2+ {[%clk 0:01:41]} 21. Kc1 {[%clk 0:00:44]}  Qa1# {[%clk 0:01:41]} 0-1


[Site "https://www.chess.com"]

[Event "Titled Tuesday Blitz December 06 Late 2022"]
[White "Timmermans, Mark"]
[Black "Shohat, Yotam"]
[WhiteFideId "1026399"]
[BlackFideId "2813955"]
[WhiteElo "2460"]
[BlackElo "2216"]
[Result "1-0"]
[Round "05"]
[TimeControl "180+1"]
[Date "2022.12.07"]
[WhiteClock "0:00:43"]
[BlackClock "0:00:02"]

1. b4 {[%clk 0:02:29]}  g6 {[%clk 0:02:56]} 2. Bb2 {[%clk 0:02:28]}  Nf6 {[%clk 0:02:56]} 3. c4 {[%clk 0:02:28]}  Bg7 {[%clk 0:02:55]} 4. a4 {[%clk 0:02:29]}  O-O {[%clk 0:02:52]} 5. b5 {[%clk 0:02:30]}  d6 {[%clk 0:02:49]} 6. e3 {[%clk 0:02:30]}  e5 {[%clk 0:02:49]} 7. Nc3 {[%clk 0:02:30]}  Nbd7 {[%clk 0:02:46]} 8. Nf3 {[%clk 0:02:31]}  e4 {[%clk 0:02:42]} 9. Nd4 {[%clk 0:02:31]}  Nc5 {[%clk 0:02:40]} 10. Be2 {[%clk 0:02:31]}  h5 {[%clk 0:02:39]} 11. O-O {[%clk 0:02:31]}  Bg4 {[%clk 0:02:38]} 12. f3 {[%clk 0:02:31]}  exf3 {[%clk 0:02:36]} 13. Nxf3 {[%clk 0:02:32]}  d5 {[%clk 0:02:22]} 14. Ba3 {[%clk 0:02:25]}  b6 {[%clk 0:02:05]} 15. d4 {[%clk 0:02:13]}  Nce4 {[%clk 0:01:50]} 16. Nxe4 {[%clk 0:02:10]}  Nxe4 {[%clk 0:01:44]} 17. Bxf8 {[%clk 0:02:09]}  Qxf8 {[%clk 0:01:43]} 18. Rc1 {[%clk 0:01:40]}  Bh6 {[%clk 0:01:28]} 19. Qd3 {[%clk 0:01:32]}  Re8 {[%clk 0:01:15]} 20. cxd5 {[%clk 0:01:29]}  Qd6 {[%clk 0:00:48]} 21. Ne5 {[%clk 0:01:27]}  Bxe2 {[%clk 0:00:46]} 22. Qxe2 {[%clk 0:01:28]}  Qxd5 {[%clk 0:00:37]} 23. Rxc7 {[%clk 0:01:20]}  Nd6 {[%clk 0:00:26]} 24. Qf3 {[%clk 0:01:07]}  Qxf3 {[%clk 0:00:14]} 25. Rxf3 {[%clk 0:01:08]}  Nf5 {[%clk 0:00:15]} 26. Kf2 {[%clk 0:01:01]}  Bxe3+ {[%clk 0:00:10]} 27. Rxe3 {[%clk 0:00:51]}  Nxe3 {[%clk 0:00:11]} 28. Kxe3 {[%clk 0:00:52]}  f6 {[%clk 0:00:11]} 29. Ke4 {[%clk 0:00:52]}  fxe5 {[%clk 0:00:10]} 30. dxe5 {[%clk 0:00:53]}  Ra8 {[%clk 0:00:09]} 31. e6 {[%clk 0:00:52]}  a6 {[%clk 0:00:09]} 32. Ke5 {[%clk 0:00:52]}  axb5 {[%clk 0:00:08]} 33. axb5 {[%clk 0:00:53]}  Ra2 {[%clk 0:00:06]} 34. Kf6 {[%clk 0:00:52]}  Rf2+ {[%clk 0:00:06]} 35. Kxg6 {[%clk 0:00:50]}  Rxg2+ {[%clk 0:00:06]} 36. Kxh5 {[%clk 0:00:47]}  Kf8 {[%clk 0:00:05]} 37. Rc6 {[%clk 0:00:46]}  Rxh2+ {[%clk 0:00:03]} 38. Kg6 {[%clk 0:00:45]}  Ke7 {[%clk 0:00:04]} 39. Rxb6 {[%clk 0:00:43]}  Re2 {[%clk 0:00:04]} 40. Kf5 {[%clk 0:00:43]}  Rf2+ {[%clk 0:00:03]} 41. Ke5 {[%clk 0:00:43]}  Re2+ {[%clk 0:00:03]} 42. Kd5 {[%clk 0:00:44]}  Rd2+ {[%clk 0:00:04]} 43. Kc6 {[%clk 0:00:43]}  Kxe6 {[%clk 0:00:03]} 44. Kb7+ {[%clk 0:00:43]}  Kd7 {[%clk 0:00:04]} 45. Rc6 {[%clk 0:00:42]}  Rh2 {[%clk 0:00:02]} 46. b6 {[%clk 0:00:40]}  Kd8 {[%clk 0:00:03]} 47. Rc8+ {[%clk 0:00:41]}  Kd7 {[%clk 0:00:02]} 48. Rc1 {[%clk 0:00:42]}  Rh8 {[%clk 0:00:02]} 49. Rd1+ {[%clk 0:00:42]}  Ke6 {[%clk 0:00:01]} 50. Ka7 {[%clk 0:00:42]}  Rh2 {[%clk 0:00:01]} 51. b7 {[%clk 0:00:42]}  Ra2+ {[%clk 0:00:02]} 52. Kb8 {[%clk 0:00:43]}  Rb2 {[%clk 0:00:02]} 53. Ra1 {[%clk 0:00:42]}  Kd7 {[%clk 0:00:02]} 54. Ka7 {[%clk 0:00:43]} 1-0


[Site "https://www.chess.com"]

[Event "Titled Tuesday Blitz December 06 Late 2022"]
[White "Tomaszewski, Kacper"]
[Black "Mendez Fortes, Eduardo Jesus"]
[WhiteFideId "1127373"]
[BlackFideId "3502376"]
[WhiteElo "2211"]
[BlackElo "2307"]
[Result "0-1"]
[Round "05"]
[TimeControl "180+1"]
[Date "2022.12.07"]
[WhiteClock "0:00:01"]
[BlackClock "0:00:21"]

1. Nf3 {[%clk 0:03:00]}  d5 {[%clk 0:02:59]} 2. c4 {[%clk 0:03:00]}  e6 {[%clk 0:02:58]} 3. d4 {[%clk 0:03:00]}  Nf6 {[%clk 0:02:57]} 4. Nc3 {[%clk 0:02:57]}  Bb4 {[%clk 0:02:57]} 5. cxd5 {[%clk 0:02:55]}  exd5 {[%clk 0:02:58]} 6. Bg5 {[%clk 0:02:54]}  h6 {[%clk 0:02:58]} 7. Bxf6 {[%clk 0:02:53]}  Qxf6 {[%clk 0:02:59]} 8. Qa4+ {[%clk 0:02:52]}  Nc6 {[%clk 0:02:59]} 9. e3 {[%clk 0:02:53]}  O-O {[%clk 0:02:58]} 10. Bb5 {[%clk 0:02:48]}  Bf5 {[%clk 0:02:34]} 11. O-O {[%clk 0:02:38]}  Bxc3 {[%clk 0:02:32]} 12. bxc3 {[%clk 0:02:38]}  Ne7 {[%clk 0:02:32]} 13. Ne5 {[%clk 0:02:31]}  c6 {[%clk 0:02:30]} 14. Be2 {[%clk 0:02:29]}  Qd6 {[%clk 0:02:16]} 15. c4 {[%clk 0:02:25]}  f6 {[%clk 0:02:13]} 16. c5 {[%clk 0:02:23]}  Qc7 {[%clk 0:02:13]} 17. Nf3 {[%clk 0:02:21]}  a6 {[%clk 0:02:12]} 18. Qb4 {[%clk 0:02:16]}  Rae8 {[%clk 0:02:10]} 19. Nd2 {[%clk 0:02:06]}  Bc8 {[%clk 0:02:08]} 20. Nb3 {[%clk 0:02:06]}  Nf5 {[%clk 0:01:59]} 21. Na5 {[%clk 0:02:04]}  Re7 {[%clk 0:01:55]} 22. Rfb1 {[%clk 0:02:01]}  Qd8 {[%clk 0:01:24]} 23. Rb2 {[%clk 0:01:52]}  Qe8 {[%clk 0:01:23]} 24. Bg4 {[%clk 0:01:50]}  Qg6 {[%clk 0:01:15]} 25. Bxf5 {[%clk 0:01:36]}  Qxf5 {[%clk 0:01:15]} 26. Rab1 {[%clk 0:01:31]}  Rff7 {[%clk 0:01:13]} 27. Qb6 {[%clk 0:01:30]}  Qe6 {[%clk 0:01:04]} 28. Qd8+ {[%clk 0:01:23]}  Re8 {[%clk 0:01:02]} 29. Qb6 {[%clk 0:01:19]}  f5 {[%clk 0:01:00]} 30. Qa7 {[%clk 0:00:58]}  Ree7 {[%clk 0:00:56]} 31. Qb8 {[%clk 0:00:46]}  Kh7 {[%clk 0:00:56]} 32. Nxb7 {[%clk 0:00:39]}  f4 {[%clk 0:00:50]} 33. Nd8 {[%clk 0:00:32]}  Qg6 {[%clk 0:00:44]} 34. Qxc8 {[%clk 0:00:24]}  Rf8 {[%clk 0:00:42]} 35. Qxc6 {[%clk 0:00:18]}  Rf6 {[%clk 0:00:38]} 36. Qxd5 {[%clk 0:00:15]}  fxe3 {[%clk 0:00:39]} 37. fxe3 {[%clk 0:00:13]}  Rxe3 {[%clk 0:00:39]} 38. Rf1 {[%clk 0:00:02]}  Rxf1+ {[%clk 0:00:37]} 39. Kxf1 {[%clk 0:00:03]}  Qd3+ {[%clk 0:00:24]} 40. Kf2 {[%clk 0:00:02]}  Re8 {[%clk 0:00:25]} 41. Qf3 {[%clk 0:00:01]}  Qxd4+ {[%clk 0:00:22]} 42. Kg3 {[%clk 0:00:01]}  Re3 {[%clk 0:00:21]} 0-1


[Site "https://www.chess.com"]

[Event "Titled Tuesday Blitz December 06 Late 2022"]
[White "Vargas, Mauricio"]
[Black "Fernandez Siles, Luis"]
[WhiteFideId "4404572"]
[BlackFideId "2209420"]
[WhiteElo "2025"]
[BlackElo "2186"]
[Result "0-1"]
[Round "05"]
[TimeControl "180+1"]
[Date "2022.12.07"]
[WhiteClock "0:00:04"]
[BlackClock "0:01:06"]

1. e4 {[%clk 0:03:00]}  c5 {[%clk 0:02:57]} 2. Nf3 {[%clk 0:02:59]}  Nc6 {[%clk 0:02:56]} 3. d4 {[%clk 0:03:00]}  cxd4 {[%clk 0:02:56]} 4. Nxd4 {[%clk 0:02:58]}  Nf6 {[%clk 0:02:56]} 5. Nc3 {[%clk 0:02:56]}  e5 {[%clk 0:02:57]} 6. Nf5 {[%clk 0:02:44]}  d5 {[%clk 0:02:51]} 7. Ng3 {[%clk 0:02:35]}  d4 {[%clk 0:02:42]} 8. Nb1 {[%clk 0:02:23]}  Be7 {[%clk 0:02:27]} 9. Bc4 {[%clk 0:02:20]}  O-O {[%clk 0:02:24]} 10. O-O {[%clk 0:02:18]}  Qb6 {[%clk 0:01:59]} 11. Kh1 {[%clk 0:02:05]}  Bg4 {[%clk 0:01:47]} 12. f3 {[%clk 0:02:02]}  Be6 {[%clk 0:01:44]} 13. Nd2 {[%clk 0:01:49]}  Rac8 {[%clk 0:01:39]} 14. Bb3 {[%clk 0:01:46]}  Na5 {[%clk 0:01:34]} 15. Bxe6 {[%clk 0:01:37]}  fxe6 {[%clk 0:01:35]} 16. b3 {[%clk 0:00:47]}  Rc6 {[%clk 0:01:20]} 17. Bb2 {[%clk 0:00:43]}  Rfc8 {[%clk 0:01:19]} 18. Rc1 {[%clk 0:00:42]}  Qc7 {[%clk 0:01:17]} 19. c4 {[%clk 0:00:19]}  dxc3 {[%clk 0:01:15]} 20. Bxc3 {[%clk 0:00:10]}  Rxc3 {[%clk 0:01:14]} 21. Rb1 {[%clk 0:00:04]}  Rd8 {[%clk 0:01:06]} 0-1


[Site "https://www.chess.com"]